fUST/lending_fUST_20250901
["ID","MTS","AMOUNT","RATE_DAILY","PERIOD"]
[382555372,1756666247385,-585.18,0.00016971,2]
[382555373,1756666247395,-1175.72,0.00016971,2]
[382555376,1756666247406,-151.0,0.00016971,2]
[382555378,1756666247415,-491.59,0.00016971,2]
[382555380,1756666247425,-480.0,0.00016971,2]
[382555382,1756666247434,-1136.23,0.00016971,2]
[382555384,1756666247443,-480.0,0.00016971,2]
[382555386,1756666247452,-588.77,0.00016971,2]
[382555388,1756666247462,-555.64,0.00016971,2]
[382555390,1756666247471,-492.7,0.00016971,2]
[382555392,1756666247480,-480.0,0.00016971,2]
[382555393,1756666247490,-1081.02,0.00016971,2]
[382555395,1756666247500,-480.0,0.00016971,2]
[382555397,1756666247510,-151.0,0.00016971,2]
[382555399,1756666247519,-587.65353831,0.00016971,2]
[382555401,1756666247528,-480.0,0.00016971,2]
[382555403,1756666247542,-480.0,0.00016971,2]
[382555405,1756666247552,-426.82320677,0.00016971,2]
[382555407,1756666247561,-151.0,0.00016971,2]
[382555409,1756666247571,-151.0,0.00016971,2]
[382555411,1756666247582,-480.0,0.00016971,2]
[382555413,1756666247592,-293.103662,0.00016971,2]
[382555415,1756666247602,-480.0,0.00016971,2]
[382555417,1756666247613,-480.0,0.00016971,2]
[382555419,1756666247623,-480.0,0.00016971,2]
[382555421,1756666247632,-480.0,0.00016971,2]
[382555423,1756666247643,-481.87,0.00016971,2]
[382555425,1756666247652,-201.02901203,0.00016971,2]
[382555427,1756666247661,-949.28,0.00016971,2]
[382555429,1756666247670,-625.70560215,0.00016971,2]
[382555431,1756666247679,-480.0,0.00016971,2]
[382555433,1756666247690,-910.33,0.00016971,2]
[382555435,1756666247700,-480.0,0.00016971,2]
[382555437,1756666247709,-480.0,0.00016971,2]
[382555439,1756666247719,-480.0,0.00016971,2]
[382555441,1756666247728,-720.83,0.00016971,2]
[382555443,1756666247737,-151.0,0.00016971,2]
[382555445,1756666247747,-480.0,0.00016971,2]
[382555447,1756666247756,-934.55,0.00016971,2]
[382555449,1756666247767,-1040.38,0.00016971,2]
[382555451,1756666247776,-151.0,0.00016971,2]
[382555453,1756666247786,-480.0,0.00016971,2]
[382555455,1756666247796,-151.943352,0.00016971,2]
[382555457,1756666247805,-480.0,0.00016971,2]
[382555459,1756666247815,-151.0,0.00016971,2]
[382555461,1756666247824,-480.0,0.00016971,2]
[382555463,1756666247833,-655.44,0.00016971,2]
[382555465,1756666247843,-151.0,0.00016971,2]
[382555466,1756666247852,-151.0,0.00016971,2]
[382555468,1756666247862,-151.0,0.00016971,2]
[382555470,1756666247872,-480.0,0.00016971,2]
[382555472,1756666247881,-480.0,0.00016971,2]
[382555474,1756666247891,-625.77,0.00016971,2]
[382555476,1756666247901,-480.0,0.00016971,2]
[382555478,1756666247910,-2856.77,0.00016971,2]
[382555480,1756666247919,-1071.7,0.00016971,2]
[382555482,1756666247929,-480.0,0.00016971,2]
[382555484,1756666247938,-480.0,0.00016971,2]
[382555486,1756666247948,-151.0,0.00016971,2]
[382555488,1756666247957,-971.21,0.00016971,2]
[382555490,1756666247967,-900.97,0.00016971,2]
[382555492,1756666247977,-480.0,0.00016971,2]
[382555494,1756666247987,-849.34,0.00016971,2]
[382555496,1756666247996,-211.109368,0.00016971,2]
[382555498,1756666248006,-211.109368,0.00016971,2]
[382555500,1756666248017,-211.109368,0.00016971,2]
[382555502,1756666248027,-211.109368,0.00016971,2]
[382555504,1756666248036,-1262.34,0.00016971,2]
[382555506,1756666248046,-480.0,0.00016971,2]
[382555507,1756666248056,-480.0,0.00016971,2]
[382555509,1756666248065,-480.0,0.00016971,2]
[382555511,1756666248075,-480.0,0.00016971,2]
[382555513,1756666248085,-151.0,0.00016971,2]
[382555515,1756666248095,-151.0,0.00016971,2]
[382555517,1756666248104,-151.0,0.00016971,2]
[382555519,1756666248114,-151.0,0.00016971,2]
[382555521,1756666248124,-169.664587,0.00016971,2]
[382555523,1756666248134,-151.0,0.00016971,2]
[382555525,1756666248145,-1286.76,0.00016971,2]
[382555527,1756666248154,-151.0,0.00016971,2]
[382555529,1756666248163,-151.0,0.00016971,2]
[382555531,1756666248173,-714.23,0.00016971,2]
[382555533,1756666248183,-480.0,0.00016971,2]
[382555535,1756666248192,-151.0,0.00016971,2]
[382555536,1756666248202,-480.0,0.00016971,2]
[382555538,1756666248211,-480.0,0.00016971,2]
[382555545,1756666248271,-584.28,0.00016971,2]
[382555547,1756666248281,-480.0,0.00016971,2]
[382555549,1756666248290,-151.0,0.00016971,2]
[382555551,1756666248300,-1167.02,0.00016971,2]
[382555553,1756666248309,-384.857097,0.00016971,2]
[382555555,1756666248318,-384.857097,0.00016971,2]
[382555557,1756666248327,-480.0,0.00016971,2]
[382555559,1756666248337,-384.857097,0.00016971,2]
[382555561,1756666248347,-384.857097,0.00016971,2]
[382555563,1756666248357,-1007.02,0.00016971,2]
[382555565,1756666248366,-900.71,0.00016971,2]
[382555567,1756666248375,-480.0,0.00016971,2]
[382555569,1756666248384,-480.0,0.00016971,2]
[382555571,1756666248393,-151.0,0.00016971,2]
[382555573,1756666248402,-151.0,0.00016971,2]
[382555574,1756666248411,-1654.98,0.00016971,2]
[382555577,1756666248423,-151.0,0.00016971,2]
[382555579,1756666248433,-613.84,0.00016971,2]
[382555581,1756666248442,-151.0,0.00016971,2]
[382555582,1756666248452,-480.0,0.00016971,2]
[382555584,1756666248461,-151.0,0.00016971,2]
[382555586,1756666248471,-480.0,0.00016971,2]
[382555588,1756666248480,-480.0,0.00016971,2]
[382555590,1756666248490,-794.31,0.00016971,2]
[382555592,1756666248499,-2126.74,0.00016971,2]
[382555594,1756666248508,-480.0,0.00016971,2]
[382555596,1756666248518,-538.74,0.00016971,2]
[382555598,1756666248527,-480.0,0.00016971,2]
[382555600,1756666248537,-535.58,0.00016971,2]
[382555602,1756666248547,-1731.2,0.00016971,2]
[382555624,1756666248764,-1172.05,0.00016971,2]
[382555626,1756666248774,-1082.72,0.00016971,2]
[382555628,1756666248783,-165.47958596,0.00016971,2]
[382555630,1756666248793,-480.0,0.00016971,2]
[382555632,1756666248802,-480.0,0.00016971,2]
[382555634,1756666248811,-480.0,0.00016971,2]
[382555635,1756666248820,-480.0,0.00016971,2]
[382555637,1756666248830,-650.91,0.00016971,2]
[382555639,1756666248839,-480.0,0.00016971,2]
[382555641,1756666248848,-480.0,0.00016971,2]
[382555643,1756666248857,-480.0,0.00016971,2]
[382555645,1756666248867,-480.0,0.00016971,2]
[382555647,1756666248876,-656.44,0.00016971,2]
[382555649,1756666248886,-508.98,0.00016971,2]
[382555651,1756666248895,-560.88,0.00016971,2]
[382555653,1756666248903,-151.0,0.00016971,2]
[382555655,1756666248912,-480.0,0.00016971,2]
[382555656,1756666248922,-622.1,0.00016971,2]
[382555658,1756666248932,-663.15,0.00016971,2]
[382555660,1756666248941,-480.0,0.00016971,2]
[382555662,1756666248951,-480.0,0.00016971,2]
[382555664,1756666248961,-480.0,0.00016971,2]
[382555666,1756666248971,-480.0,0.00016971,2]
[382555668,1756666248980,-480.0,0.00016971,2]
[382555670,1756666248990,-151.0,0.00016971,2]
[382555672,1756666248999,-480.0,0.00016971,2]
[382555674,1756666249009,-1346.99,0.00016971,2]
[382555676,1756666249019,-535.64,0.00016971,2]
[382555677,1756666249028,-1348.93,0.00016971,2]
[382555679,1756666249038,-480.0,0.00016971,2]
[382555681,1756666249048,-480.0,0.00016971,2]
[382555683,1756666249057,-480.0,0.00016971,2]
[382555685,1756666249067,-480.0,0.00016971,2]
[382555687,1756666249076,-480.0,0.00016971,2]
[382555689,1756666249086,-151.0,0.00016971,2]
[382555691,1756666249096,-480.0,0.00016971,2]
[382555693,1756666249105,-649.4,0.00016971,2]
[382555695,1756666249140,-480.0,0.00016971,2]
[382555697,1756666249149,-151.0,0.00016971,2]
[382555699,1756666249158,-151.0,0.00016971,2]
[382555701,1756666249168,-151.0,0.00016971,2]
[382555703,1756666249180,-151.0,0.00016971,2]
[382555705,1756666249190,-151.0,0.00016971,2]
[382555707,1756666249199,-480.0,0.00016971,2]
[382555709,1756666249209,-151.343345,0.00016971,2]
[382555711,1756666249218,-540.89,0.00016971,2]
[382555713,1756666249228,-152.953308,0.00016971,2]
[382555715,1756666249238,-480.0,0.00016971,2]
[382555717,1756666249247,-152.953308,0.00016971,2]
[382555718,1756666249257,-152.953308,0.00016971,2]
[382555720,1756666249267,-569.15,0.00016971,2]
[382555722,1756666249277,-152.953308,0.00016971,2]
[382555724,1756666249287,-610.75,0.00016971,2]
[382555726,1756666249296,-480.0,0.00016971,2]
[382555728,1756666249306,-480.0,0.00016971,2]
[382555730,1756666249316,-172.580756,0.00016971,2]
[382555732,1756666249326,-172.580756,0.00016971,2]
[382555734,1756666249335,-172.580756,0.00016971,2]
[382555736,1756666249346,-480.0,0.00016971,2]
[382555738,1756666249355,-172.580756,0.00016971,2]
[382555740,1756666249365,-838.42,0.00016971,2]
[382555742,1756666249374,-480.0,0.00016971,2]
[382555744,1756666249384,-1261.57,0.00016971,2]
[382555746,1756666249394,-1045.13,0.00016971,2]
[382555748,1756666249403,-599.00710125,0.00016971,2]
[382555750,1756666249413,-543.6,0.00016971,2]
[382555751,1756666249423,-151.0,0.00016971,2]
[382555753,1756666249433,-151.0,0.00016971,2]
[382555755,1756666249443,-480.0,0.00016971,2]
[382555757,1756666249452,-184.038744,0.00016971,2]
[382555759,1756666249462,-151.0,0.00016971,2]
[382555761,1756666249471,-480.0,0.00016971,2]
[382555763,1756666249480,-282.621089,0.00016971,2]
[382555765,1756666249490,-151.0,0.00016971,2]
[382555767,1756666249501,-151.0,0.00016971,2]
[382555769,1756666249511,-480.0,0.00016971,2]
[382555770,1756666249520,-151.0,0.00016971,2]
[382555772,1756666249530,-282.621089,0.00016971,2]
[382555774,1756666249543,-282.621089,0.00016971,2]
[382555776,1756666249552,-282.621089,0.00016971,2]
[382555778,1756666249561,-500.0,0.00016973,2]
[382555780,1756666249571,-151.0,0.00017,2]
[382555782,1756666249581,-151.0,0.00017,2]
[382555784,1756666249591,-151.0,0.00017,2]
[382555786,1756666249600,-151.0,0.00017,2]
[382555788,1756666249611,-2224.56646017,0.00017001,2]
[382555790,1756666249621,-3229.7813549,0.00017019,2]
[382555792,1756666249630,-300.0,0.0001703,2]
[382555794,1756666249639,-300.0,0.0001703,2]
[382555796,1756666249648,-300.0,0.0001703,2]
[382555798,1756666249657,-300.0,0.0001703,2]
[382555800,1756666249666,-300.0,0.0001703,2]
[382555802,1756666249676,-300.0,0.0001703,2]
[382555803,1756666249686,-300.0,0.0001703,2]
[382555805,1756666249696,-300.0,0.0001703,2]
[382555807,1756666249705,-300.0,0.0001703,2]
[382555809,1756666249715,-300.0,0.0001703,2]
[382555810,1756666249724,-300.0,0.0001703,2]
[382555811,1756666249734,-300.0,0.0001703,2]
[382555812,1756666249743,-300.0,0.0001703,2]
[382555813,1756666249753,-300.0,0.0001703,2]
[382555814,1756666249762,-300.0,0.0001703,2]
[382555815,1756666249772,-600.0,0.0001703,2]
[382555816,1756666249782,-520.00015841,0.00017071,2]
[382555817,1756666249791,-480.0,0.00017071,2]
[382555818,1756666249800,-480.0,0.00017071,2]
[382555819,1756666249809,-652.18,0.00017071,2]
[382555820,1756666249818,-575.65,0.00017071,2]
[382555821,1756666249828,-480.0,0.00017071,2]
[382555822,1756666249838,-151.0,0.00017071,2]
[382555823,1756666249847,-151.0,0.00017071,2]
[382555824,1756666249856,-151.0,0.00017071,2]
[382555825,1756666249866,-151.0,0.00017071,2]
[382555826,1756666249875,-512.79,0.00017071,2]
[382555827,1756666249885,-984.67,0.00017071,2]
[382555828,1756666249894,-480.0,0.00017071,2]
[382555829,1756666249903,-480.0,0.00017071,2]
[382555830,1756666249913,-480.0,0.00017071,2]
[382555831,1756666249922,-480.0,0.00017071,2]
[382555832,1756666249932,-480.0,0.00017071,2]
[382555833,1756666249941,-546.41,0.00017071,2]
[382555834,1756666249951,-151.0,0.000171,2]
[382555835,1756666249960,-151.0,0.000171,2]
[382555836,1756666249970,-151.0,0.000171,2]
[382555837,1756666249979,-151.0,0.000171,2]
[382555838,1756666249988,-400.0,0.000171,2]
[382555839,1756666249997,-151.0,0.000172,2]
[382555840,1756666250006,-151.0,0.000172,2]
[382555842,1756666250016,-151.0,0.000172,2]
[382555843,1756666250025,-151.0,0.000172,2]
[382555845,1756666250035,-500.0,0.00017209,2]
[382555847,1756666250044,-769.73,0.00017209,2]
[382555849,1756666250053,-480.0,0.00017218,2]
[382555851,1756666250062,-480.0,0.00017218,2]
[382555853,1756666250071,-1029.23,0.00017218,2]
[382555855,1756666250082,-480.0,0.00017218,2]
[382555857,1756666250092,-1236.91,0.00017218,2]
[382555859,1756666250102,-1386.55,0.00017218,2]
[382555861,1756666250112,-1000.0,0.00017221,2]
[382555863,1756666250122,-1000.0,0.00017221,2]
[382555865,1756666250131,-1000.0,0.00017221,2]
[382555867,1756666250141,-1000.0,0.00017221,2]
[382555869,1756666250150,-1000.0,0.00017221,2]
[382555871,1756666250161,-1000.0,0.00017221,2]
[382555874,1756666250171,-1000.0,0.00017221,2]
[382555875,1756666250181,-1000.0,0.00017221,2]
[382555877,1756666250191,-1000.0,0.00017221,2]
[382555879,1756666250200,-1000.0,0.00017221,2]
[382555881,1756666250210,-1000.0,0.00017221,2]
[382555883,1756666250221,-1024.36340573,0.00017221,2]
[382555885,1756666250231,-1000.0,0.00017221,2]
[382555887,1756666250241,-1000.0,0.00017221,2]
[382555889,1756666250250,-1000.0,0.00017221,2]
[382555891,1756666250260,-1000.0,0.00017221,2]
[382555893,1756666250269,-1000.0,0.00017221,2]
[382555895,1756666250280,-713.79428328,0.00017221,2]
[382555897,1756666250290,-979.62,0.00017242,2]
[382555899,1756666250300,-480.0,0.00017242,2]
[382555901,1756666250309,-480.0,0.00017242,2]
[382555904,1756666250319,-480.0,0.00017242,2]
[382555905,1756666250330,-480.0,0.00017242,2]
[382555908,1756666250342,-480.0,0.00017242,2]
[382555910,1756666250351,-480.0,0.00017242,2]
[382555911,1756666250361,-631.34,0.00017242,2]
[382555913,1756666250370,-480.0,0.00017242,2]
[382555916,1756666250380,-480.0,0.00017242,2]
[382555918,1756666250401,-492.2747479,0.00017242,2]
[382555920,1756666250411,-480.0,0.00017242,2]
[382555922,1756666250421,-489.77,0.00017242,2]
[382555924,1756666250430,-529.29,0.00017242,2]
[382555926,1756666250440,-454.39174437,0.00017242,2]
[382555928,1756666250450,-480.0,0.00017242,2]
[382555930,1756666250460,-729.43,0.00017242,2]
[382555932,1756666250470,-480.0,0.00017242,2]
[382555934,1756666250480,-480.0,0.00017242,2]
[382555936,1756666250490,-480.0,0.00017242,2]
[382555938,1756666250500,-739.99,0.00017242,2]
[382555940,1756666250511,-480.0,0.00017242,2]
[382555942,1756666250521,-480.0,0.00017242,2]
[382555944,1756666250531,-480.0,0.00017243,2]
[382555946,1756666250541,-480.0,0.00017243,2]
[382555948,1756666250553,-480.0,0.00017243,2]
[382555949,1756666250563,-1461.32,0.00017243,2]
[382555950,1756666250572,-810.48,0.00017243,2]
[382555951,1756666250582,-962.71,0.00017243,2]
[382555952,1756666250591,-480.0,0.00017243,2]
[382555953,1756666250601,-782.37,0.00017243,2]
[382555954,1756666250612,-480.0,0.00017243,2]
[382555955,1756666250621,-491.61,0.00017243,2]
[382555956,1756666250631,-480.0,0.00017243,2]
[382555957,1756666250642,-486.85,0.00017243,2]
[382555958,1756666250652,-603.14,0.00017243,2]
[382555959,1756666250662,-748.53,0.00017243,2]
[382555960,1756666250672,-480.0,0.00017243,2]
[382555961,1756666250682,-480.0,0.00017243,2]
[382555962,1756666250692,-818.99,0.00017243,2]
[382555963,1756666250703,-1024.68,0.00017243,2]
[382555964,1756666250713,-588.16,0.00017243,2]
[382555965,1756666250723,-480.0,0.00017243,2]
[382555966,1756666250734,-742.86,0.00017243,2]
[382555967,1756666250744,-501.17,0.00017243,2]
[382555968,1756666250754,-724.98,0.00017243,2]
[382555969,1756666250765,-1030.41,0.00017243,2]
[382555970,1756666250775,-1001.0,0.00017243,2]
[382555971,1756666250784,-480.0,0.00017243,2]
[382555972,1756666250796,-480.0,0.00017243,2]
[382555973,1756666250806,-480.0,0.00017243,2]
[382555974,1756666250816,-480.0,0.00017243,2]
[382555975,1756666250826,-685.34,0.00017243,2]
[382555976,1756666250835,-493.84,0.00017243,2]
[382555977,1756666250845,-480.0,0.00017243,2]
[382555978,1756666250856,-505.24,0.00017243,2]
[382555979,1756666250866,-497.43,0.00017243,2]
[382555980,1756666250876,-994.57,0.00017243,2]
[382555981,1756666250886,-480.0,0.00017243,2]
[382555982,1756666250896,-480.0,0.00017243,2]
[382555983,1756666250906,-1779.89,0.00017243,2]
[382555984,1756666250917,-480.0,0.00017243,2]
[382555985,1756666250927,-836.52,0.00017243,2]
[382555986,1756666250938,-604.07,0.00017243,2]
[382555987,1756666250948,-869.39,0.00017243,2]
[382555988,1756666250959,-210.46874851,0.00017243,2]
[382555989,1756666250969,-498.24,0.00017243,2]
[382555990,1756666250979,-480.0,0.00017243,2]
[382555991,1756666250988,-1012.37,0.00017243,2]
[382555992,1756666250998,-480.0,0.00017243,2]
[382555993,1756666251008,-1344.9,0.00017243,2]
[382555994,1756666251019,-1243.82,0.00017243,2]
[382555995,1756666251029,-985.25,0.00017243,2]
[382555996,1756666251039,-480.0,0.00017243,2]
[382555997,1756666251054,-480.0,0.00017243,2]
[382555998,1756666251064,-480.0,0.00017243,2]
[382555999,1756666251074,-587.47,0.00017243,2]
[382556000,1756666251083,-1022.72,0.00017243,2]
[382556001,1756666251093,-543.35,0.00017243,2]
[382556002,1756666251103,-480.0,0.00017243,2]
[382556003,1756666251114,-2062.51,0.00017243,2]
[382556004,1756666251123,-797.04,0.00017243,2]
[382556005,1756666251133,-480.0,0.00017243,2]
[382556006,1756666251143,-773.81,0.00017243,2]
[382556007,1756666251154,-1010.56,0.00017243,2]
[382556008,1756666251174,-480.0,0.00017243,2]
[382556009,1756666251191,-1061.73,0.00017243,2]
[382556010,1756666251202,-766.62,0.00017243,2]
[382556011,1756666251212,-1897.83,0.00017243,2]
[382556012,1756666251222,-725.16,0.00017243,2]
[382556013,1756666251232,-480.0,0.00017243,2]
[382556014,1756666251242,-480.0,0.00017243,2]
[382556015,1756666251252,-1173.59,0.00017243,2]
[382556016,1756666251261,-510.87,0.00017243,2]
[382556017,1756666251271,-480.0,0.00017243,2]
[382556018,1756666251281,-480.0,0.00017243,2]
[382556019,1756666251291,-618.82,0.00017243,2]
[382556020,1756666251300,-151.0,0.00017244,2]
[382556021,1756666251310,-270.445229,0.00017244,2]
[382556022,1756666251320,-151.0,0.00017244,2]
[382556023,1756666251329,-804.06,0.00017244,2]
[382556024,1756666251339,-3599.12,0.00017244,2]
[382556025,1756666251350,-6013.89,0.00017244,2]
[382556026,1756666251360,-1563.83,0.00017244,2]
[382556027,1756666251370,-480.0,0.00017244,2]
[382556028,1756666251380,-1261.56,0.00017244,2]
[382556029,1756666251389,-868.94,0.00017244,2]
[382556030,1756666251399,-151.0,0.00017244,2]
[382556031,1756666251408,-151.0,0.00017244,2]
[382556032,1756666251418,-4994.37,0.00017244,2]
[382556034,1756666251428,-151.0,0.00017244,2]
[382556035,1756666251437,-151.0,0.00017244,2]
[382556036,1756666251447,-151.0,0.00017244,2]
[382556037,1756666251456,-152.953308,0.00017244,2]
[382556038,1756666251466,-152.953308,0.00017244,2]
[382556039,1756666251475,-152.953308,0.00017244,2]
[382556040,1756666251484,-5041.24,0.00017244,2]
[382556041,1756666251494,-152.953308,0.00017244,2]
[382556042,1756666251503,-172.580756,0.00017244,2]
[382556043,1756666251514,-172.580756,0.00017244,2]
[382556044,1756666251524,-172.580756,0.00017244,2]
[382556045,1756666251534,-172.580756,0.00017244,2]
[382556046,1756666251544,-480.0,0.00017244,2]
[382556047,1756666251559,-1000.0,0.00017244,2]
[382556048,1756666251577,-1000.0,0.00017244,2]
[382556049,1756666251588,-1000.0,0.00017244,2]
[382556050,1756666251597,-1000.0,0.00017244,2]
[382556051,1756666251606,-1000.0,0.00017244,2]
[382556052,1756666251616,-1000.0,0.00017244,2]
[382556053,1756666251625,-1000.0,0.00017244,2]
[382556054,1756666251636,-1000.0,0.00017244,2]
[382556055,1756666251646,-1000.0,0.00017244,2]
[382556056,1756666251655,-1000.0,0.00017244,2]
[382556057,1756666251665,-151.0,0.00017244,2]
[382556058,1756666251675,-151.0,0.00017244,2]
[382556059,1756666251686,-639.98,0.00017244,2]
[382556060,1756666251696,-1000.0,0.00017244,2]
[382556061,1756666251706,-1000.0,0.00017244,2]
[382556062,1756666251717,-1000.0,0.00017244,2]
[382556063,1756666251727,-1000.0,0.00017244,2]
[382556064,1756666251737,-1000.0,0.00017244,2]
[382556065,1756666251746,-1000.0,0.00017244,2]
[382556066,1756666251757,-151.0,0.00017244,2]
[382556067,1756666251767,-1000.0,0.00017244,2]
[382556068,1756666251777,-282.621089,0.00017244,2]
[382556069,1756666251787,-1000.0,0.00017244,2]
[382556070,1756666251796,-151.0,0.00017244,2]
[382556071,1756666251807,-1000.0,0.00017244,2]
[382556072,1756666251816,-480.0,0.00017244,2]
[382556073,1756666251826,-1000.0,0.00017244,2]
[382556074,1756666251836,-1000.0,0.00017244,2]
[382556075,1756666251846,-151.0,0.00017244,2]
[382556076,1756666251856,-1000.0,0.00017244,2]
[382556077,1756666251867,-1000.0,0.00017244,2]
[382556078,1756666251876,-1000.0,0.00017244,2]
[382556079,1756666251886,-282.621089,0.00017244,2]
[382556080,1756666251896,-868.837679,0.00017244,2]
[382556081,1756666251907,-282.621089,0.00017244,2]
[382556082,1756666251917,-1098.49,0.00017244,2]
[382556083,1756666251927,-282.621089,0.00017244,2]
[382556084,1756666251936,-480.0,0.00017245,2]
[382556085,1756666251946,-480.0,0.00017245,2]
[382556086,1756666251955,-480.0,0.00017245,2]
[382556087,1756666251964,-622.72287376,0.00017245,2]
[382556088,1756666251974,-1029.14,0.00017245,2]
[382556089,1756666251984,-1040.21,0.00017245,2]
[382556090,1756666251994,-480.0,0.00017245,2]
[382556091,1756666252003,-480.0,0.00017245,2]
[382556092,1756666252013,-480.0,0.00017245,2]
[382556093,1756666252023,-480.0,0.00017245,2]
[382556094,1756666252033,-480.0,0.00017245,2]
[382556095,1756666252043,-480.0,0.00017245,2]
[382556096,1756666252052,-480.0,0.00017245,2]
[382556097,1756666252062,-480.0,0.00017245,2]
[382556098,1756666252072,-480.0,0.00017245,2]
[382556099,1756666252082,-480.0,0.00017245,2]
[382556100,1756666252091,-151.0,0.00017245,2]
[382556101,1756666252103,-480.0,0.00017245,2]
[382556102,1756666252113,-480.0,0.00017245,2]
[382556103,1756666252123,-773.18,0.00017245,2]
[382556104,1756666252132,-480.0,0.00017245,2]
[382556105,1756666252142,-480.0,0.00017245,2]
[382556106,1756666252152,-480.0,0.00017245,2]
[382556107,1756666252162,-480.0,0.00017245,2]
[382556108,1756666252172,-480.0,0.00017245,2]
[382556109,1756666252182,-480.0,0.00017245,2]
[382556110,1756666252192,-151.0,0.00017245,2]
[382556111,1756666252202,-480.0,0.00017245,2]
[382556112,1756666252211,-480.0,0.00017245,2]
[382556113,1756666252221,-480.0,0.00017245,2]
[382556114,1756666252231,-480.0,0.00017245,2]
[382556115,1756666252241,-480.0,0.00017245,2]
[382556116,1756666252250,-418.0733762,0.00017245,2]
[382556117,1756666252260,-599.13,0.00017245,2]
[382556118,1756666252427,-480.0,0.00017245,2]
[382556119,1756666252436,-578.41,0.00017245,2]
[382556120,1756666252445,-480.0,0.00017245,2]
[382556121,1756666252455,-480.0,0.00017245,2]
[382556122,1756666252464,-480.0,0.00017245,2]
[382556123,1756666252473,-272.63163788,0.00017245,2]
[382556124,1756666252483,-480.0,0.00017245,2]
[382556125,1756666252492,-420.79921387,0.00017245,2]
[382556126,1756666252501,-480.0,0.00017245,2]
[382556127,1756666252510,-260.69080686,0.00017245,2]
[382556128,1756666252520,-480.0,0.00017245,2]
[382556129,1756666252530,-151.0,0.00017245,2]
[382556130,1756666252539,-480.0,0.00017245,2]
[382556132,1756666252549,-480.0,0.00017245,2]
[382556134,1756666252559,-480.0,0.00017245,2]
[382556136,1756666252569,-480.0,0.00017245,2]
[382556138,1756666252578,-834.99,0.00017245,2]
[382556140,1756666252587,-480.0,0.00017245,2]
[382556142,1756666252596,-480.0,0.00017245,2]
[382556144,1756666252605,-480.0,0.00017245,2]
[382556146,1756666252614,-480.0,0.00017245,2]
[382556148,1756666252623,-1131.92,0.00017245,2]
[382556150,1756666252632,-480.0,0.00017245,2]
[382556152,1756666252641,-480.0,0.00017245,2]
[382556154,1756666252650,-500.0,0.00017245,2]
[382556155,1756666252659,-916.59,0.00017245,2]
[382556156,1756666252669,-480.0,0.00017245,2]
[382556157,1756666252678,-750.53,0.00017245,2]
[382556158,1756666252688,-558.42,0.00017245,2]
[382556159,1756666252697,-480.0,0.00017245,2]
[382556160,1756666252706,-427.78250325,0.00017245,2]
[382556161,1756666252716,-480.0,0.00017245,2]
[382556162,1756666252726,-480.0,0.00017245,2]
[382556163,1756666252735,-776.49,0.00017245,2]